bitfinex/quotes_ETHUSD_20250131
["timestamp","ask_amount","ask_price","bid_price","bid_amount"]
[1738324540977,5.0,3330.0,3329.7,3.00326]
[1738324541153,5.0,3330.0,3329.8,3.00318]
[1738324541864,5.0,3330.0,3329.7,0.677368]
[1738324542079,5.0,3330.0,3329.9,3.00309]
[1738324543403,5.0,3330.0,3329.7,3.680548]
[1738324543599,5.0,3330.0,3329.8,3.0031]
[1738324543826,5.0,3330.0,3329.8,1.25595436]
[1738324544099,5.1,3330.0,3329.7,3.680548]
[1738324544779,5.1,3330.0,3329.9,3.00309]
[1738324546856,5.1,3330.0,3329.9,6.55309]
[1738324547088,5.1,3330.0,3329.9,7.30659]
[1738324550720,5.1,3330.0,3329.9,6.55309]
[1738324550875,5.1,3330.0,3329.9,8.46254246]
[1738324552302,5.1,3330.0,3329.8,8.93]
[1738324552475,5.1,3330.0,3329.6,3.00335]
[1738324553170,5.1,3330.0,3329.6,3.0]
[1738324553371,5.1,3330.0,3329.7,3.00326]
[1738324553616,5.1,3330.0,3329.6,3.0]
[1738324553970,5.1,3330.0,3329.7,3.00325]
[1738324554381,5.0,3330.0,3329.7,2.90325]
[1738324556081,0.7735,3329.8,3329.5,3.0]
[1738324556235,5.0,3330.0,3329.6,0.55]
[1738324556435,5.0,3330.0,3329.9,3.00309]
[1738324557077,5.0,3330.0,3329.8,3.00311]
[1738324557475,5.0,3330.0,3329.9,6.55309]
[1738324557698,5.0,3330.0,3329.9,7.32469]
[1738324558795,5.0,3330.0,3329.9,7.59966213]
[1738324559595,5.0,3330.0,3329.9,7.81977186]
[1738324559893,5.0,3330.0,3329.9,7.04817186]
[1738324560764,5.0,3330.0,3329.9,9.74073115]
[1738324563557,5.0,3330.0,3329.9,18.67073115]
[1738324566711,5.0,3330.0,3329.9,18.67823115]
[1738324567678,5.0,3330.0,3329.9,18.82815186]
[1738324571890,5.0,3330.0,3329.9,18.67073115]
[1738324573152,5.0,3330.0,3329.9,17.90633115]
[1738324573847,5.0,3330.0,3329.9,18.69363115]
[1738324575154,0.8212,3331.1,3330.0,0.015]
[1738324575361,0.8212,3331.1,3331.0,3.0021]
[1738324575647,0.815,3331.4,3331.0,3.0021]
[1738324576546,0.815,3331.4,3330.9,6.55218]
[1738324577907,3.81678,3331.4,3330.9,3.0]
[1738324578944,0.815,3331.4,3330.9,6.00217]
[1738324579153,0.815,3331.4,3330.9,6.45521104]
[1738324579353,0.815,3331.4,3331.1,3.00192]
[1738324579510,0.815,3331.4,3331.3,3.00183]
[1738324579717,0.7512,3331.9,3331.3,3.00183]
[1738324580030,3.75249,3331.9,3331.2,6.00185]
[1738324580225,3.00142,3331.8,3331.2,6.00185]
[1738324580428,0.03752084,3331.7,3331.2,6.00185]
[1738324580820,0.7512,3331.5,3331.1,3.0]
[1738324581024,0.7512,3331.5,3330.8,3.00225]
[1738324581025,3.00174,3331.4,3330.9,0.55]
[1738324581224,3.00174,3331.4,3330.9,3.0]
[1738324581455,6.00356,3331.4,3330.8,3.00225]
[1738324581610,3.00197,3331.2,3330.8,3.0]
[1738324581810,3.00197,3331.2,3330.6,3.00242]
[1738324582251,3.00197,3331.2,3330.7,3.0]
[1738324582635,0.7681,3331.0,3330.3,8.93]
[1738324582964,0.7681,3331.0,3330.0,0.55]
[1738324582965,3.00246,3330.6,3330.0,0.55]
[1738324583254,3.00304,3330.0,3329.4,0.55]
[1738324583455,3.00284,3330.2,3329.4,0.55]
[1738324583456,0.7681,3329.9,3329.6,3.0]
[1738324583666,0.7681,3329.9,3329.3,2.751071]
[1738324583824,0.7681,3329.9,3329.4,3.00348]
[1738324584037,0.7681,3329.9,3329.4,3.22294167]
[1738324584238,3.7712,3329.9,3329.4,0.21946167]
[1738324584863,3.04072296,3329.8,3329.4,0.21946167]
[1738324585040,3.00327,3329.7,3329.4,0.21946167]
[1738324585266,0.03754461,3329.6,3329.0,6.304911]
[1738324585456,3.00327,3329.7,3329.1,6.0038]
[1738324585629,3.00327,3329.7,3329.2,3.00371]
[1738324585829,6.77436,3329.9,3329.3,3.0]
[1738324586271,3.00322,3329.8,3329.3,3.0]
[1738324586468,3.7712,3329.9,3329.3,3.0]
[1738324586658,3.75849,3329.7,3329.3,3.0]
[1738324587377,0.7552,3329.7,3329.3,3.0]
[1738324587836,3.75849,3329.7,3329.3,3.0]
[1738324588177,3.75849,3329.7,3329.3,5.751071]
[1738324588477,0.7552,3329.7,3329.3,5.751071]
[1738324589737,0.7552,3329.7,3329.3,8.754691]
[1738324593377,0.7552,3329.7,3329.4,3.00352]
[1738324597612,0.7552,3329.7,3329.3,5.751071]
[1738324597836,0.7552,3329.7,3329.3,8.754671]
[1738324598282,0.7552,3329.7,3329.3,8.754681]
[1738324598677,1.131031,3329.7,3328.9,3.00397]
[1738324598875,0.7885,3329.5,3328.7,5.755241]
[1738324599118,3.79202,3329.5,3328.9,3.00396]
[1738324600027,3.79099,3329.8,3329.3,5.754661]
[1738324601025,0.7878,3329.8,3329.3,5.754661]
[1738324601344,0.062862,3330.0,3329.9,3.00309]
[1738324601480,0.062862,3330.0,3329.9,8.754161]
[1738324601882,0.062862,3330.0,3329.9,18.998261]
[1738324602126,0.8063,3331.3,3330.7,3.00233]
[1738324602424,3.80816,3331.3,3330.7,3.00233]
[1738324602596,4.55019369,3331.3,3330.7,3.00233]
[1738324603143,4.55019369,3331.3,3330.8,3.00227]
[1738324603284,0.8063,3331.3,3331.1,3.00199]
[1738324603610,0.8063,3331.6,3331.1,3.00199]
[1738324604279,0.8063,3331.6,3331.2,3.00191]
[1738324604478,0.8063,3331.6,3331.1,3.00199]
[1738324605179,0.8063,3331.6,3331.3,3.00175]
[1738324606697,0.8063,3331.6,3331.2,3.0]
[1738324606893,1.19082009,3331.6,3331.0,3.0]
[1738324607113,3.00181,3331.4,3330.8,3.0]
[1738324607292,3.03937555,3331.3,3330.8,3.0]
[1738324607820,3.00199,3331.2,3330.8,3.0]
[1738324608031,3.00211,3331.0,3330.7,8.93]
[1738324608882,0.8132,3331.1,3330.7,8.93]
[1738324609080,0.8132,3331.3,3330.7,10.123245]
[1738324609282,0.8132,3331.3,3330.9,3.00218]
[1738324610024,0.7807,3331.5,3330.9,3.00218]
[1738324610195,0.7807,3331.5,3331.1,3.002]
[1738324610425,0.7807,3331.7,3331.3,3.00181]
[1738324610759,0.7807,3331.7,3331.1,3.002]
[1738324611059,0.81822111,3331.7,3331.2,3.00191]
[1738324612258,0.7807,3331.7,3331.3,3.0018]
[1738324612456,0.81822101,3331.7,3331.3,3.0018]
[1738324612752,3.81971101,3331.7,3331.1,3.002]
[1738324613664,0.81822101,3331.7,3331.2,3.00191]
[1738324614358,1.20018811,3331.7,3330.9,8.93]
[1738324614560,3.00179,3331.4,3330.9,8.93]
[1738324614718,3.7886,3331.0,3330.9,8.93]
[1738324614913,0.7865,3331.0,3330.9,8.93]
[1738324615471,6.30089,3332.4,3330.9,8.93]
[1738324615472,0.7865,3331.4,3330.9,8.93]
[1738324615634,0.7865,3331.4,3331.0,3.00207]
[1738324616024,0.7865,3331.4,3331.1,3.002]
[1738324616232,3.79976281,3331.7,3331.1,3.002]
[1738324617016,0.7607,3331.7,3331.2,3.00186]
[1738324617343,0.8118,3332.0,3331.5,3.00158]
[1738324617551,0.8118,3332.0,3331.4,2.751071]
[1738324617552,0.60197957,3332.5,3331.4,2.751071]
[1738324617892,3.00105,3332.2,3331.6,3.0015]
[1738324618089,3.00113,3332.1,3331.6,3.0015]
[1738324618215,3.00113,3332.1,3331.5,3.00164]
[1738324618868,3.00113,3332.1,3331.6,3.00155]
[1738324621800,0.38526884,3332.7,3332.0,3.0]
[1738324622000,3.0012,3332.0,3331.9,8.93]
[1738324622198,3.0012,3332.0,3331.5,0.55]
[1738324623012,3.00102,3332.2,3331.5,0.55]
[1738324623171,3.00102,3332.2,3331.5,6.55163]
[1738324623375,0.4131282,3332.1,3331.2,0.819]
[1738324623577,3.00152,3331.7,3331.1,0.55]
[1738324623766,3.00139,3331.8,3331.0,0.55]
[1738324624095,3.00158,3331.6,3331.2,3.0]
[1738324624593,3.8091,3331.7,3331.2,6.00191]
[1738324625069,0.8076,3331.7,3331.2,6.00191]
[1738324625268,0.7537,3333.2,3332.0,3.00111]
[1738324625483,3.00037,3333.0,3332.1,4.34390863]
[1738324625681,3.75386,3333.2,3332.4,3.00076]
[1738324626181,3.00031,3333.0,3332.4,3.00076]
[1738324626382,0.03750765,3333.1,3332.4,3.00076]
[1738324626584,3.75384,3333.2,3332.7,3.0]
[1738324626999,3.75384,3333.2,3332.4,3.300896]
[1738324627000,3.00032,3333.0,3332.5,3.0]
[1738324627208,3.75384,3333.2,3332.5,3.0]
[1738324627362,3.00035,3333.0,3332.5,3.0]
[1738324627563,3.00041,3332.9,3332.4,3.00076]
[1738324627762,3.75385,3333.2,3332.4,3.00076]
[1738324627763,3.00026,3333.1,3332.4,3.00076]
[1738324628101,0.8113,3333.0,3332.1,8.93]
[1738324628257,3.76192,3332.2,3331.6,0.55]
[1738324628458,3.76192,3332.2,3331.6,3.55]
[1738324628459,0.7609,3332.2,3331.6,3.55]
[1738324628676,0.7609,3332.2,3331.7,3.0014]
[1738324630314,3.76308,3332.6,3332.0,6.00114]
[1738324631114,3.76308,3332.6,3332.1,0.55]
[1738324631317,3.76276,3333.0,3332.4,3.00083]
[1738324631760,3.76276,3333.0,3332.5,3.00069]
[1738324631761,0.7624,3333.0,3332.5,3.00069]
[1738324632134,3.00027,3333.1,3332.4,3.00083]
[1738324632344,3.00012,3333.2,3332.6,3.00064]
[1738324632540,3.00012,3333.2,3332.7,3.0]
[1738324632765,3.00012,3333.2,3332.7,6.00053]
[1738324632915,0.03750585,3333.2,3332.7,3.0]
[1738324633125,3.00026,3333.1,3332.5,3.0]
[1738324633330,3.76247,3333.3,3332.7,3.00055]
[1738324633594,3.76247,3333.3,3332.8,3.00044]
[1738324634172,0.7624,3333.3,3332.8,3.00044]
[1738324634385,0.7624,3333.3,3332.8,3.00039]
[1738324634600,0.7624,3333.3,3332.9,3.00038]
[1738324635093,0.005,3333.4,3333.0,3.00025]
[1738324635246,0.005,3333.4,3332.9,3.00038]
[1738324635247,0.005,3333.4,3333.2,3.0]
[1738324635441,0.005,3333.4,3333.1,3.00014]
[1738324635442,3.00008,3333.3,3332.8,0.60303943]
[1738324635674,3.00008,3333.3,3332.7,3.77484]
[1738324635973,0.005,3333.4,3333.1,3.00015]
[1738324636384,0.005,3333.4,3333.3,3.00003]
[1738324636737,0.005,3333.4,3333.3,6.00003]
[1738324636949,0.005,3333.4,3333.1,3.00018]
[1738324637383,0.005,3333.4,3332.9,3.00033]
[1738324637546,0.005,3333.4,3333.0,3.00024]
[1738324637752,0.005,3333.4,3333.1,3.00019]
[1738324638048,0.005,3333.4,3332.9,3.00036]
[1738324638283,0.005,3333.4,3332.9,3.677878]
[1738324638880,3.00008,3333.3,3332.7,3.77482]
[1738324639084,3.00026,3333.1,3332.6,11.93065]
[1738324639282,3.00008,3333.3,3332.7,3.00055]
[1738324640158,3.00047,3332.9,3332.3,0.7889]
[1738324640353,6.00119,3332.7,3331.9,3.81852]
[1738324640723,3.380327,3332.9,3332.3,3.00085]
[1738324640900,3.0006,3332.7,3331.9,0.8173]
[1738324641201,3.001,3332.3,3331.7,3.00146]
[1738324642064,3.0011,3332.2,3331.6,4.3747]
[1738324642263,3.001,3332.3,3331.6,7.37619]
[1738324642264,3.8309,3332.3,3331.6,7.37619]
[1738324642471,3.8309,3332.3,3331.7,3.00146]
[1738324644198,3.00087,3332.4,3331.9,3.00121]
[1738324644567,3.00079,3332.5,3331.9,3.00121]
[1738324644896,3.00093,3332.3,3331.7,3.00146]
[1738324645101,3.00093,3332.3,3331.8,3.00136]
[1738324645300,3.00089,3332.4,3331.8,3.00136]
[1738324645653,0.8229,3332.6,3332.1,3.0011]
[1738324645899,3.00048,3332.8,3332.3,3.00091]
[1738324646299,6.00103,3332.8,3332.2,0.7582]
[1738324646500,3.00048,3332.8,3332.2,3.75916]
[1738324646859,3.77135,3333.2,3332.6,3.00058]
[1738324647059,4.448981,3333.2,3332.7,3.00056]
[1738324647357,0.005,3333.4,3333.0,3.00027]
[1738324647702,3.00018,3333.2,3332.6,3.00058]
[1738324647864,6.00499,3333.4,3332.4,3.0]
[1738324648202,3.00498,3333.4,3332.4,3.03000463]
[1738324648444,3.00012,3333.2,3332.6,3.00059]
[1738324648590,3.41641379,3333.3,3332.5,3.00068]
[1738324648786,3.41641379,3333.3,3332.3,8.93]
[1738324648787,3.00028,3333.1,3332.3,8.93]
[1738324648992,3.00028,3333.1,3332.4,3.00077]
[1738324649192,3.03778816,3333.1,3332.4,3.00077]
[1738324649808,3.00039,3332.9,3332.4,3.00077]
[1738324651097,3.00031,3333.0,3332.5,3.00074]
[1738324651433,3.03791816,3332.9,3332.4,3.00077]
[1738324651795,0.03750816,3332.9,3332.3,8.93]
[1738324651995,3.00064,3332.7,3332.3,8.93]
[1738324652219,3.00077,3332.5,3332.3,8.93]
[1738324652539,3.00064,3332.7,3332.1,6.0011]
[1738324653813,3.00067,3332.6,3332.1,6.0011]
[1738324654224,3.00077,3332.5,3331.9,7.30531]
[1738324654571,3.00106,3332.2,3331.6,3.82259]
[1738324654843,3.00104,3332.2,3331.7,6.00146]
[1738324655006,0.8186,3332.4,3331.7,3.0]
[1738324655213,3.00071,3332.6,3332.0,3.00119]
[1738324655441,0.8186,3332.8,3331.9,0.55]
[1738324655598,0.8186,3332.8,3332.3,3.00084]
[1738324655942,0.8186,3332.8,3332.2,0.8211]
[1738324655943,3.00038,3333.0,3332.2,3.82212]
[1738324656125,3.00041,3332.9,3332.4,3.00079]
[1738324656326,3.00041,3332.9,3332.2,3.82212]
[1738324656503,3.03798872,3332.8,3332.2,3.82212]
[1738324656705,0.8091,3332.7,3332.0,3.00115]
[1738324656904,3.00072,3332.6,3332.0,3.00115]
[1738324657642,3.00075,3332.5,3332.0,3.00115]
[1738324657843,3.00086,3332.4,3332.0,3.0]
[1738324658043,3.00119,3332.1,3331.5,3.81471]
[1738324658355,3.00074,3332.6,3331.7,3.0]
[1738324658497,3.00074,3332.6,3331.9,3.0]
[1738324658498,3.00085,3332.4,3331.9,3.0]
[1738324659120,3.00085,3332.4,3331.9,6.00128]
[1738324660247,3.00085,3332.4,3331.9,3.0]
[1738324660403,0.8105,3332.0,3331.2,4.32517]
[1738324660741,3.00135,3331.9,3331.4,3.0]
[1738324660913,3.00113,3332.1,3331.4,3.00168]
[1738324661113,0.8105,3332.5,3331.7,3.00141]
[1738324661412,3.00095,3332.3,3331.8,0.7771]
[1738324661611,3.00095,3332.3,3331.8,3.77847]
[1738324662033,3.00089,3332.4,3331.8,3.77847]
[1738324664144,3.00094,3332.3,3331.8,3.77847]
[1738324664347,3.00094,3332.3,3331.8,0.7771]
[1738324664702,3.00082,3332.5,3331.8,1.454959]
[1738324664941,3.00074,3332.6,3332.1,3.0]
[1738324665109,3.00076,3332.5,3332.1,3.0]
[1738324665844,3.00076,3332.5,3331.9,3.0]
[1738324666006,3.00076,3332.5,3331.9,7.021992]
[1738324667045,3.00084,3332.4,3331.9,7.021992]
[1738324667247,3.00107,3332.2,3331.9,4.020732]
[1738324667406,3.00107,3332.2,3331.8,0.7771]
[1738324667602,6.00179,3332.4,3331.8,0.7771]
[1738324667806,3.00095,3332.3,3331.8,3.7771]
[1738324668746,3.03854423,3332.2,3331.8,3.7771]
[1738324668945,3.00115,3332.1,3331.6,3.0]
[1738324669671,0.7646,3332.6,3332.1,3.00109]
[1738324669950,3.00048,3332.8,3332.3,3.00086]
[1738324670452,3.00045,3332.9,3332.3,3.00086]
[1738324670747,3.00045,3332.9,3332.4,3.0]
[1738324671160,3.00045,3332.9,3332.4,3.7837]
[1738324671752,3.0379877,3332.8,3332.4,3.7837]
[1738324671906,3.00048,3332.8,3332.4,3.7837]
[1738324672404,0.03750771,3332.8,3332.0,3.8087]
[1738324672746,0.7646,3333.0,3332.0,3.8087]
[1738324672747,3.00084,3332.4,3332.0,4.489697]
[1738324673146,3.00093,3332.3,3332.0,1.489697]
[1738324673309,3.00093,3332.3,3332.0,0.8087]
[1738324673965,3.00084,3332.4,3332.0,3.8087]
[1738324674164,3.00064,3332.7,3332.0,0.8087]
[1738324674368,3.00033,3333.0,3332.5,0.7704]
[1738324676273,3.00033,3333.0,3332.5,3.77114]
[1738324677029,3.00015,3333.2,3332.5,3.77114]
[1738324677230,3.00015,3333.2,3332.8,3.0]
[1738324677466,0.8072,3333.3,3332.8,6.00046]
[1738324677467,3.00007,3333.3,3332.8,6.00046]
[1738324677772,0.005,3333.4,3333.0,6.00051]
[1738324677972,0.005,3333.4,3333.0,3.00022]
[1738324678128,0.005,3333.4,3332.9,1.3528]
[1738324678330,0.005,3333.4,3333.2,3.00005]
[1738324678530,0.005,3333.4,3333.3,19.03310031]
[1738324678733,0.005,3333.4,3333.3,19.003101]
[1738324679343,0.005,3333.4,3333.3,19.209101]
[1738324679742,0.00923169,3334.9,3333.9,3.0]
[1738324679968,0.00923169,3334.9,3334.4,2.99896]
[1738324680169,0.00923169,3334.9,3334.2,6.54916]
[1738324680170,0.04671676,3334.9,3334.1,0.7703]
[1738324680369,2.999,3334.5,3334.1,0.7703]
[1738324680671,2.999,3334.5,3334.0,3.0]
[1738324680672,3.78248,3334.8,3334.0,0.55]
[1738324680835,0.00923169,3334.9,3334.3,0.8018]
[1738324681032,0.00923169,3334.9,3334.3,3.80086]
[1738324681227,0.00923169,3334.9,3333.4,3.80173]
[1738324681228,2.751071,3334.7,3333.4,3.80173]
[1738324681431,0.7996,3334.5,3333.5,0.55]
[1738324681658,2.99921,3334.3,3333.5,0.55]
[1738324681831,2.99883,3334.7,3334.1,2.9993]
[1738324682028,3.62163493,3334.9,3334.3,0.55]
[1738324682029,0.00923169,3334.9,3334.3,0.55]
[1738324682292,3.00782169,3334.9,3334.3,3.54905]
[1738324682844,2.99868,3334.8,3334.3,0.55]
[1738324683051,0.69406632,3334.9,3334.0,0.8018]
[1738324683277,2.99884,3334.7,3334.0,6.80115]
[1738324683635,2.99884,3334.7,3334.2,3.0]
[1738324683830,2.9989,3334.6,3334.1,0.55]
[1738324684771,0.00923169,3334.9,3334.3,3.54905]
[1738324684772,3.00784169,3334.9,3334.3,3.54905]
[1738324684960,0.00923169,3334.9,3334.4,0.02998565]
[1738324685161,0.00923169,3334.9,3334.6,0.55]
[1738324685585,0.00923169,3334.9,3334.5,0.7872]
[1738324685778,2.99877,3334.7,3334.2,1.3372]
[1738324685987,3.00785169,3334.9,3334.2,1.3372]
[1738324686191,2.99868,3334.8,3334.2,1.3372]
[1738324686711,3.00782169,3334.9,3334.3,2.99911]
[1738324686853,0.00923169,3334.9,3334.3,2.99911]
[1738324687053,0.00923169,3334.9,3334.2,1.3372]
[1738324687271,0.00923169,3334.9,3334.3,3.0]
[1738324687667,0.00923169,3334.9,3334.3,5.9991]
[1738324688069,2.99877,3334.7,3334.2,0.7872]
[1738324688268,0.00923169,3334.9,3334.4,2.99899]
[1738324688501,0.00923169,3334.9,3334.3,0.57999031]
[1738324688668,0.00923169,3334.9,3334.6,2.99885]
[1738324688977,0.00923169,3334.9,3334.8,2.99868]
[1738324689163,0.00923169,3334.9,3334.8,4.31128]
[1738324689366,0.00923169,3334.9,3334.8,8.342284]
[1738324689812,0.00923169,3334.9,3334.8,3.0]
[1738324690156,0.00923169,3334.9,3334.8,5.99868]
[1738324690861,0.00923169,3334.9,3334.8,6.54868]
[1738324691201,0.00923169,3334.9,3334.8,7.30808]
[1738324691556,0.00923169,3334.9,3334.8,7.31558]
[1738324691751,0.00923169,3334.9,3334.8,9.206745]
[1738324691752,1.69e-06,3334.9,3334.8,9.206745]
[1738324691955,1.69e-06,3334.9,3334.8,9.199245]
[1738324692197,1.69e-06,3334.9,3334.8,9.191745]
[1738324693097,1.69e-06,3334.9,3334.8,9.199245]
[1738324693296,1.69e-06,3334.9,3334.8,9.206745]
[1738324693598,0.02639184,3335.6,3335.5,7.30745]
[1738324694276,0.02639184,3335.6,3335.5,8.645325]
[1738324694673,0.02639184,3335.6,3335.5,8.637825]
[1738324695189,0.02639184,3335.6,3335.5,8.652825]
[1738324695993,0.00123,3338.3,3337.1,2.99661]
[1738324696163,0.8311,3339.1,3337.7,4.3326]
[1738324696363,2.99515,3338.8,3338.0,2.99578]
[1738324696605,2.9951,3338.8,3338.1,2.99564]
[1738324696802,2.99494,3339.0,3337.4,2.99625]
[1738324696803,0.0374424,3338.7,3337.4,2.99625]
[1738324696973,2.99607,3337.8,3336.9,0.8333]
[1738324697171,0.774,3337.6,3336.0,3.15175012]
[1738324697372,0.0374513,3337.7,3335.3,0.1]
[1738324697373,4.29293002,3336.6,3335.4,0.7918]
[1738324697606,2.99759,3336.1,3335.4,0.7918]
[1738324697815,0.03746993,3336.0,3334.9,0.7918]
[1738324697982,2.99791,3335.7,3335.0,3.02840924]
[1738324698314,0.299791,3335.7,3334.9,3.7903]
[1738324698490,2.99797,3335.6,3334.9,3.79038]
[1738324698711,0.7695,3336.6,3335.0,3.02842225]
[1738324698908,2.99763,3336.0,3335.3,2.99822]
[1738324699087,2.99747,3336.2,3335.4,3.0]
[1738324699291,2.99769,3335.9,3335.2,0.55]
[1738324699492,2.99824,3335.3,3334.9,0.7918]
[1738324699727,2.99805,3335.5,3334.6,0.55]
[1738324699932,0.8039,3335.7,3334.5,0.7505]
[1738324699933,0.03747782,3335.4,3334.5,0.7505]
[1738324700222,2.99843,3335.1,3334.5,0.7505]
[1738324700381,2.99843,3335.1,3334.5,0.78048444]
[1738324700583,2.99887,3334.6,3333.9,0.7664]
[1738324700824,2.99885,3334.7,3333.9,3.76582]
[1738324701027,2.99898,3334.5,3333.9,0.7664]
[1738324701239,2.99878,3334.7,3334.0,0.0299908]
[1738324702097,2.99868,3334.8,3334.0,0.0299908]
[1738324702281,0.03748614,3335.2,3334.0,0.70953688]
[1738324702482,2.99882,3334.7,3334.0,0.67954608]
[1738324702679,2.99857,3335.0,3334.1,0.55]
[1738324702885,2.99857,3335.0,3334.3,2.99912]
[1738324703134,2.99811,3335.5,3334.5,2.99893]
[1738324703294,3.80183,3335.7,3334.6,3.93161912]
[1738324703295,2.99831,3335.3,3334.6,3.93161912]
[1738324703620,0.8039,3335.7,3334.6,3.93161912]
[1738324703621,2.99833,3335.2,3334.6,0.90280373]
[1738324703782,2.99833,3335.2,3334.1,6.54928]
[1738324703783,2.99874,3334.8,3334.1,5.99928]
[1738324703982,2.9985,3335.0,3334.3,0.55]
[1738324704222,0.8039,3335.7,3334.3,0.55]
[1738324704223,2.99833,3335.2,3334.5,3.0]
[1738324704434,2.99833,3335.2,3334.6,0.02998423]
[1738324704597,2.99833,3335.2,3334.6,3.02882423]
[1738324704798,2.99811,3335.5,3334.8,2.99859]
[1738324705005,2.9979,3335.7,3335.0,2.99844]
[1738324705317,2.99786,3335.8,3335.1,3.02838072]
[1738324706743,3.7665,3336.2,3335.3,2.99814]
[1738324707024,3.7665,3336.2,3335.1,2.99839]
[1738324707025,2.99785,3335.8,3335.1,2.99839]
[1738324707235,2.99769,3335.9,3335.3,2.99817]
[1738324707386,2.99769,3335.9,3335.3,3.02814769]
[1738324707831,0.03747212,3336.2,3335.3,0.02997769]
[1738324707832,2.99793,3335.7,3335.3,0.02997769]
[1738324707995,2.99795,3335.7,3334.9,3.80258]
[1738324708200,2.99807,3335.5,3334.9,1.63490994]
[1738324708402,2.99818,3335.4,3334.9,1.63490994]
[1738324708750,2.99818,3335.4,3334.6,3.0]
[1738324708751,3.03563649,3335.4,3334.6,0.55]
[1738324708885,2.99833,3335.2,3334.6,3.0]
[1738324709086,2.99833,3335.2,3334.5,0.7628]
[1738324709087,2.9985,3335.0,3334.5,0.7628]
[1738324709690,2.99834,3335.2,3334.5,0.7628]
[1738324710033,2.99777,3335.9,3335.0,2.99843]
[1738324710212,2.99791,3335.7,3335.0,2.99843]
[1738324710416,2.99791,3335.7,3335.1,3.02831947]
[1738324711251,4.32513002,3336.2,3335.4,2.99813]
[1738324711252,2.99756,3336.1,3335.4,2.99813]
[1738324711605,2.99761,3336.0,3335.4,2.99813]
[1738324712537,2.99769,3335.9,3335.4,2.99813]
[1738324712848,0.59346379,3336.5,3335.4,0.7764]
[1738324713153,2.99704,3336.7,3335.6,3.5575]
[1738324713368,2.99704,3336.7,3336.1,2.99749]
[1738324713643,0.03746407,3337.0,3336.0,3.02748126]
[1738324713846,2.99706,3336.6,3336.0,3.02748126]
[1738324714055,3.03436407,3336.8,3336.0,2.99751]
[1738324714347,2.99701,3336.7,3336.0,2.99751]
[1738324714551,2.99701,3336.7,3336.0,3.02748126]
[1738324714759,2.99709,3336.6,3335.8,2.99776]
[1738324714964,2.99734,3336.3,3335.6,5.99793]
[1738324715164,2.99734,3336.3,3335.6,2.9979]
[1738324715316,2.99734,3336.3,3335.7,2.99787]
[1738324715513,2.99726,3336.4,3335.8,2.99776]
[1738324715743,0.03746677,3336.9,3335.9,3.02762342]
[1738324715956,2.99696,3336.8,3336.1,2.9975]
[1738324716178,6.51982002,3337.4,3336.3,0.8136]
[1738324716362,2.9968,3336.9,3336.3,3.81091]
[1738324716571,2.99689,3336.8,3336.3,0.8136]
[1738324717063,0.730112,3337.3,3336.3,0.8435702]
[1738324717367,0.730112,3337.3,3335.8,0.02996806]
[1738324717368,3.79011,3337.1,3335.8,0.02996806]
[1738324717586,2.99733,3336.3,3335.3,0.7692]
[1738324717733,2.99779,3335.8,3335.3,0.7692]
[1738324718078,2.9975,3336.2,3335.6,2.99791]
[1738324718278,2.9975,3336.2,3335.7,0.02997451]
[1738324718436,2.99732,3336.4,3335.7,3.02783451]
[1738324718635,2.99697,3336.7,3335.8,2.99769]
[1738324718840,2.99722,3336.5,3335.9,0.02997288]
[1738324719151,2.99697,3336.7,3335.9,0.02997288]
[1738324719152,2.99703,3336.7,3336.1,1.3379]
[1738324719540,2.99709,3336.6,3336.1,0.81786922]
[1738324719991,2.99709,3336.6,3336.1,0.7879]
[1738324720199,0.599398,3336.6,3336.1,0.7879]
[1738324720398,2.99715,3336.5,3336.1,0.7879]
[1738324720963,2.99699,3336.7,3336.1,0.7879]
[1738324721194,2.99707,3336.6,3336.1,0.7879]
[1738324722101,2.99726,3336.4,3336.1,0.7879]
[1738324722260,2.99707,3336.6,3336.1,0.7879]
[1738324722809,2.99707,3336.6,3336.1,0.81787045]
[1738324723365,2.99674,3337.0,3336.5,0.55]
[1738324723566,2.99637,3337.4,3336.6,2.99704]
[1738324723910,2.9962,3337.6,3336.9,0.7847]
[1738324724061,2.9963,3337.5,3337.0,3.0]
[1738324724266,2.99626,3337.5,3337.0,3.0]
[1738324724683,2.99626,3337.5,3336.9,3.78149]
[1738324724684,2.99626,3337.5,3336.9,0.7847]
[1738324725022,2.99648,3337.3,3336.9,0.7847]
[1738324725223,2.99653,3337.2,3336.9,0.7847]
[1738324725581,2.99628,3337.5,3337.0,3.0]
[1738324725921,0.03745383,3337.6,3336.6,0.55]
[1738324726085,2.99621,3337.6,3337.0,3.0]
[1738324726291,2.99625,3337.5,3337.0,3.0]
[1738324726498,0.03745394,3337.9,3337.0,3.0]
[1738324726691,0.4906824,3337.9,3337.1,0.8261]
[1738324726876,2.99657,3337.2,3336.5,3.82325]
[1738324727076,2.99638,3337.4,3336.7,2.99691]
[1738324727077,2.99647,3337.3,3336.7,2.99691]
[1738324727316,2.99638,3337.4,3336.7,2.99691]
[1738324727545,2.99638,3337.4,3336.9,3.0]
[1738324727546,2.99645,3337.3,3336.9,3.0]
[1738324727715,2.99666,3337.1,3336.5,0.8261]
[1738324727912,2.99666,3337.1,3336.5,3.8261]
[1738324728117,2.99682,3336.9,3336.5,3.8261]